fUSD/lending_fUSD_20240418
["ID","MTS","AMOUNT","RATE_DAILY","PERIOD"]
[322879887,1713467444119,-152.577368,0.00017506,2]
[322879888,1713467444129,-1158.359706,0.00017506,2]
[322879889,1713467444138,-1158.359706,0.00017506,2]
[322879890,1713467444148,-151.0,0.00017506,2]
[322879891,1713467444158,-168.009333,0.00017506,2]
[322879892,1713467444167,-168.009333,0.00017506,2]
[322879893,1713467444177,-151.0,0.00017506,2]
[322879894,1713467444186,-532.545293,0.00017506,2]
[322879895,1713467444195,-151.0,0.00017506,2]
[322879896,1713467444205,-532.545293,0.00017506,2]
[322879897,1713467444214,-151.0,0.00017506,2]
[322879898,1713467444223,-151.0,0.00017506,2]
[322879899,1713467444233,-160.981,0.00017506,2]
[322879900,1713467444242,-152.0,0.00017506,2]
[322879901,1713467444251,-259.0,0.00017506,2]
[322879902,1713467444260,-150.0,0.00017506,2]
[322879903,1713467444270,-152.241,0.00017506,2]
[322879904,1713467444280,-200.0,0.00017506,2]
[322879905,1713467444290,-150.866,0.00017506,2]
[322879906,1713467444300,-150.0,0.00017506,2]
[322879907,1713467444310,-150.0,0.00017506,2]
[322879908,1713467444320,-275.0,0.00017506,2]
[322879909,1713467444329,-176.228,0.00017506,2]
[322879910,1713467444339,-150.0,0.00017506,2]
[322879911,1713467444348,-150.0,0.00017506,2]
[322879912,1713467444358,-1392.0,0.00017506,2]
[322879913,1713467444367,-2293.0,0.00017506,2]
[322879914,1713467444377,-461.894,0.00017506,2]
[322879915,1713467444386,-969.0,0.00017506,2]
[322879916,1713467444395,-1228.0,0.00017506,2]
[322879917,1713467444405,-1255.0,0.00017506,2]
[322879918,1713467444414,-541.0,0.00017506,2]
[322879919,1713467444423,-855.969,0.00017506,2]
[322879920,1713467444433,-1950.0,0.00017506,2]
[322879921,1713467444442,-609.0,0.00017506,2]
[322879922,1713467444451,-257.0,0.00017506,2]
[322879923,1713467444460,-436.0,0.00017506,2]
[322879924,1713467444469,-1473.0,0.00017506,2]
[322879925,1713467444478,-2443.0,0.00017506,2]
[322879926,1713467444488,-399.0,0.00017506,2]
[322879927,1713467444497,-150.0,0.00017506,2]
[322879928,1713467444506,-3079.0,0.00017506,2]
[322879929,1713467444516,-150.0,0.00017506,2]
[322879930,1713467444525,-1639.0,0.00017506,2]
[322879931,1713467444534,-214.0,0.00017506,2]
[322879932,1713467444543,-1140.0,0.00017506,2]
[322879933,1713467444552,-443.0,0.00017506,2]
[322879934,1713467444562,-355.0,0.00017506,2]
[322879935,1713467444570,-150.26,0.00017516,2]
[322879936,1713467444579,-150.26,0.00017516,2]
[322879937,1713467444589,-40393.03095157,0.00017526,2]
[322879938,1713467444633,-16768.98760738,0.00017526,2]
[322879939,1713467444645,-4595.28737994,0.00017526,2]
[322879956,1713467446221,-151.0,0.000175,2]
[322879957,1713467446232,-2998.22220706,0.00017526,2]
[322879958,1713467446245,-1458.78306831,0.00017526,2]
[322879959,1713467447457,-1425.95166666,0.00017526,2]
[322879960,1713467447484,-1737.89013415,0.00017526,2]
[322879961,1713467448931,-869.38816599,0.00017526,2]
[322879962,1713467448942,-2066.06392,0.00017526,2]
[322879963,1713467499528,154.48,0.0001619,15]
[322879964,1713467681466,4379.84599277,0.0001619,10]
[322879965,1713467687224,155.0,0.00015063,5]
[322879966,1713467693197,486.4,0.00013764,2]
[322879967,1713467703283,2919.89732851,0.0001619,10]
[322879968,1713467706912,155.0,0.00015063,5]
[322879969,1713467723728,2433.24777376,0.0001619,10]
[322879970,1713467726595,293.90492455,0.00015063,5]
[322879971,1713467744509,2433.24777376,0.0001619,10]
[322879972,1713467766419,1267.72209013,0.00015063,10]
[322879973,1713467791047,1267.72209013,0.00015063,10]
[322879974,1713467808983,401.50073336,0.00015063,10]
[322879975,1713467809007,866.22135677,0.00015063,10]
[322879976,1713467827042,1267.72209013,0.00015063,10]
[322879977,1713467848004,1267.72209013,0.00015063,10]
[322879978,1713467869367,1267.72209013,0.00015063,10]
[322879979,1713467889474,1267.72209013,0.00015063,10]
[322879980,1713467892851,150.0,0.00015485,2]
[322879981,1713467895753,500.0,0.00015485,2]
[322879982,1713467906465,1267.72209013,0.00015063,10]
[322879983,1713467928422,1267.72209013,0.00015485,10]
[322879984,1713467944673,756.74005764,0.00015485,10]
[322879985,1713467983000,259.63,0.0001548,2]
[322879986,1713467991174,600.0,0.0001548,2]
[322879987,1713467998964,651.58,0.00015478,2]
[322879988,1713467999079,651.58,0.00015482,2]
[322879989,1713467999310,651.58,0.00015486,2]
[322879990,1713467999483,651.58,0.0001549,2]
[322879991,1713467999593,651.58,0.00015495,2]
[322879992,1713467999853,651.58,0.00015499,2]
[322879993,1713467999999,651.58,0.00015503,2]
[322879994,1713468015210,348.3,0.00015233,2]
[322879995,1713468015354,348.3,0.00015275,2]
[322879996,1713468015752,348.3,0.00015317,2]
[322879997,1713468015867,348.3,0.00015359,2]
[322879998,1713468016097,348.3,0.000154,2]
[322879999,1713468016343,348.3,0.00015442,2]
[322880000,1713468016480,348.3,0.00015484,2]
[322880001,1713468048494,154.48,0.0001611,15]
[322880002,1713468078038,426.68,0.0001503,2]
[322880003,1713468198464,462.08,0.00015257,2]
[322880004,1713468232389,155.54815529,0.00015411,2]
[322880005,1713468285805,-424.15646557,0.00015506,2]
[322880006,1713468285831,-651.58,0.00015507,2]
[322880007,1713468285855,-651.58,0.00015511,2]
[322880008,1713468285879,-651.58,0.00015515,2]
[322880009,1713468285903,-651.58,0.00015519,2]
[322880010,1713468285927,-651.58,0.00015523,2]
[322880011,1713468285951,-348.3,0.00015526,2]
[322880012,1713468285975,-651.58,0.00015527,2]
[322880013,1713468285998,-651.58,0.00015531,2]
[322880014,1713468286021,-651.58,0.00015535,2]
[322880015,1713468286046,-651.58,0.00015539,2]
[322880016,1713468286070,-150.0,0.0001554,2]
[322880017,1713468286098,-150.0,0.0001554,2]
[322880018,1713468286123,-1852.42,0.00015541,2]
[322880019,1713468286148,-3182.46,0.00015541,2]
[322880020,1713468286175,-651.58,0.00015544,2]
[322880021,1713468286201,-651.58,0.00015548,2]
[322880022,1713468286226,-651.58,0.00015552,2]
[322880023,1713468286250,-651.58,0.00015556,2]
[322880024,1713468286276,-175.49,0.00015556,2]
[322880025,1713468286301,-348.3,0.00015568,2]
[322880026,1713468286324,-167.96,0.00015572,2]
[322880027,1713468286349,-250.0,0.00015585,2]
[322880028,1713468286374,-348.3,0.00015609,2]
[322880029,1713468286398,-200.0,0.00015628,2]
[322880030,1713468286422,-499.99,0.00015628,2]
[322880031,1713468286450,-348.3,0.00015651,2]
[322880032,1713468286478,-348.3,0.00015693,2]
[322880033,1713468286501,-177.56,0.00015722,2]
[322880034,1713468286525,-348.3,0.00015735,2]
[322880035,1713468286549,-348.3,0.00015776,2]
[322880036,1713468286572,-348.3,0.00015818,2]
[322880037,1713468286599,-348.3,0.0001586,2]
[322880038,1713468286623,-348.3,0.00015902,2]
[322880039,1713468286646,-348.3,0.00015944,2]
[322880040,1713468286669,-168.24,0.00015962,2]
[322880041,1713468286692,-348.3,0.00015985,2]
[322880042,1713468286715,-1250.0,0.00016,2]
[322880043,1713468298162,-348.3,0.00016027,2]
[322880044,1713468298188,-11999.99,0.00016028,6]
[322880045,1713468298212,-168.38,0.00016164,2]
[322880046,1713468298237,-175.26,0.00016195,2]
[322880047,1713468298262,-400.0,0.00016272,2]
[322880048,1713468298287,-1500.0,0.00016438,2]
[322880049,1713468298311,-3406.17756238,0.0001659,2]
[322880050,1713468298337,-162.23,0.0001663,2]
[322880051,1713468298365,-1586.6255,0.00016639,2]
[322880052,1713468298389,-47635.7482,0.000167,2]
[322880053,1713468298416,-3400.0,0.000167,6]
[322880054,1713468298441,-6682.99,0.00016712,2]
[322880055,1713468298465,-1261.54841761,0.00016718,2]
[322880056,1713468298491,-349.56,0.00016729,3]
[322880057,1713468298515,-680.2897,0.0001673,2]
[322880058,1713468298540,-1241.03910676,0.00016737,2]
[322880059,1713468298565,-500.0,0.00016738,2]
[322880060,1713468298590,-7821.99,0.00016738,2]
[322880061,1713468298615,-149799.88615874,0.00016739,2]
[322880062,1713468298640,-35210.93038898,0.0001674,2]
[322880063,1713468298664,-223.65370089,0.0001674,2]
[322880064,1713468298689,-1296.90311868,0.0001674,2]
[322880065,1713468298714,-134428.385134,0.00016741,2]
[322880066,1713468298739,-985.48,0.00016741,2]
[322880067,1713468298765,-985.48,0.00016746,2]
[322880068,1713468298789,-985.48,0.0001675,2]
[322880069,1713468298814,-985.48,0.00016754,2]
[322880070,1713468298840,-985.48,0.00016759,2]
[322880071,1713468298866,-985.48,0.00016763,2]
[322880072,1713468298892,-985.48,0.00016768,2]
[322880073,1713468298918,-985.48,0.00016772,2]
[322880074,1713468298945,-985.48,0.00016776,2]
[322880075,1713468298970,-985.48,0.00016781,2]
[322880076,1713468298995,-985.48,0.00016785,2]
[322880077,1713468299021,-985.48,0.0001679,2]
[322880078,1713468299046,-985.48,0.00016794,2]
[322880079,1713468299071,-985.48,0.00016799,2]
[322880080,1713468299097,-6800.0,0.000168,6]
[322880081,1713468299121,-985.48,0.00016803,2]
[322880082,1713468299147,-985.48,0.00016807,2]
[322880083,1713468299172,-985.48,0.00016812,2]
[322880084,1713468299197,-985.48,0.00016816,2]
[322880085,1713468299223,-500.0,0.0001682,2]
[322880086,1713468299249,-985.48,0.00016821,2]
[322880087,1713468299274,-985.48,0.00016825,2]
[322880088,1713468299299,-10200.0,0.000169,6]
[322880089,1713468299627,-180.02495681,0.00016938,2]
[322880090,1713468299652,-182.09134435,0.00016938,2]
[322880091,1713468299677,-181.430489,0.00016986,2]
[322880092,1713468299702,-2208.3254597,0.0001699,2]
[322880093,1713468299726,-293.6462943,0.0001699,2]
[322880094,1713468299752,-150.27,0.0001699,2]
[322880095,1713468299777,-150.27,0.0001699,2]
[322880096,1713468299802,-150.27,0.0001699,2]
[322880097,1713468299826,-150.27,0.0001699,2]
[322880098,1713468299853,-150.27,0.0001699,2]
[322880099,1713468299877,-150.27,0.0001699,2]
[322880100,1713468299903,-150.27,0.0001699,2]
[322880101,1713468299927,-150.27,0.0001699,2]
[322880102,1713468299952,-150.27,0.0001699,2]
[322880103,1713468299976,-150.27,0.0001699,2]
[322880104,1713468300000,-150.27,0.0001699,2]
[322880105,1713468300026,-150.27,0.0001699,2]
[322880106,1713468300051,-150.27,0.0001699,2]
[322880107,1713468300076,-3526.78,0.00016996,2]
[322880108,1713468300102,-3526.78,0.00016996,2]
[322880109,1713468300126,-3526.78,0.00016999,2]
[322880110,1713468300151,-3526.78,0.00016999,2]
[322880111,1713468300177,-3526.78,0.00016999,2]
[322880112,1713468300201,-3526.78,0.00016999,2]
[322880113,1713468300226,-3526.78,0.00016999,2]
[322880114,1713468300251,-3526.78,0.00016999,2]
[322880115,1713468300277,-3526.78,0.00016999,2]
[322880116,1713468300301,-10941.13,0.00016999,2]
[322880117,1713468300325,-10941.13,0.00016999,2]
[322880118,1713468300350,-10941.13,0.00016999,2]
[322880119,1713468300374,-10941.13,0.00016999,2]
[322880120,1713468300400,-10941.13,0.00016999,2]
[322880121,1713468300425,-5880.39800223,0.00016999,2]
[322880122,1713468403584,-319.57113435,0.00016516,2]
[322880123,1713468523108,154.48,0.00017174,15]
[322880130,1713468632253,-213.34,0.00016118,2]
[322880131,1713468632263,-367.52539022,0.00016183,2]
[322880132,1713468632301,-152.47460978,0.00016183,2]
[322880133,1713468632311,-299.83,0.00016213,3]
[322880134,1713468632321,-1500.0,0.00016438,2]
[322880135,1713468632330,-1802.06886565,0.00016516,2]
[322880136,1713468632340,-158.21,0.00016529,2]
[322880137,1713468632349,-247.64805341,0.000166,2]
[322880138,1713468632360,-593.41505923,0.000166,2]
[322880139,1713468632372,-2158.93688736,0.000166,2]
[322880140,1713468632382,-4300.0,0.000167,6]
[322880141,1713468632391,-300.0,0.00016799,2]
[322880142,1713468632400,-3252.18801264,0.000168,6]
[322880143,1713468632450,-3308.305,0.000168,6]
[322880144,1713468632461,-282.835599,0.000168,6]
[322880145,1713468632472,-527.18712473,0.000168,6]
[322880146,1713468632484,-402.0,0.000168,6]
[322880147,1713468632559,-638.49582452,0.000168,6]
[322880148,1713468632570,-188.98843911,0.000168,6]
[322880149,1713468632579,-3811.01156089,0.0001682,2]
[322880150,1713468632612,-1377.42843911,0.0001682,2]
[322880151,1713468632622,-954.90135044,0.0001682,2]
[322880152,1713468632633,-713.07366266,0.0001682,2]
[322880154,1713468632644,-893.59727248,0.0001682,2]
[322880156,1713468632656,-654.94616865,0.0001682,2]
[322880158,1713468632669,-385.23455068,0.0001682,2]
[322880162,1713468632701,-1586.68699509,0.0001682,2]
[322880164,1713468632711,-3469.45285902,0.00016899,2]
[322880166,1713468632721,-12900.0,0.000169,6]
[322880168,1713468632730,-346.39047614,0.00016938,2]
[322880169,1713468632741,-14459.04807668,0.00016938,2]
[322880170,1713468632751,-500.0,0.00016996,2]
[322880171,1713468632761,-529.49985698,0.00016996,2]
[322880172,1713468632772,-500.0,0.00016998,2]
[322880173,1713468632782,-500.0,0.00016998,2]
[322880174,1713468632793,-5188.44,0.00016999,2]
[322880175,1713468632803,-5188.44,0.00016999,2]
[322880176,1713468632813,-5188.44,0.00016999,2]
[322880177,1713468632823,-5188.44,0.00016999,2]
[322880178,1713468632832,-5188.44,0.00016999,2]
[322880179,1713468633170,-5188.44,0.00016999,2]
[322880180,1713468633198,-5188.44,0.00016999,2]
[322880181,1713468633208,-500.0,0.00016999,2]
[322880182,1713468633217,-500.0,0.00016999,2]
[322880183,1713468633226,-500.0,0.00016999,2]
[322880184,1713468633236,-500.0,0.00016999,2]
[322880185,1713468633245,-500.0,0.00016999,2]
[322880186,1713468633254,-500.0,0.00016999,2]
[322880187,1713468633264,-500.0,0.00016999,2]
[322880188,1713468633274,-500.0,0.00016999,2]
[322880189,1713468633283,-500.0,0.00016999,2]
[322880190,1713468633293,-500.0,0.00016999,2]
[322880191,1713468633302,-500.0,0.00016999,2]
[322880192,1713468633312,-500.0,0.00016999,2]
[322880193,1713468633321,-500.0,0.00016999,2]
[322880194,1713468633330,-1304.0,0.00016999,2]
[322880195,1713468633339,-126324.49759924,0.00017,2]
[322880196,1713468633352,-15799.99996,0.00017,2]
[322880197,1713468633363,-6338.16738,0.00017,2]
[322880198,1713468633375,-2444.26708576,0.00017,2]
[322880199,1713468633387,-4909.8383545,0.00017,2]
[322880200,1713468633398,-809.73333754,0.00017,2]
[322880254,1713468638663,-150.27,0.0001699,2]
[322880255,1713468638673,-139.45341223,0.0001699,2]
[322880256,1713468638825,-10.81658777,0.0001699,2]
[322880257,1713468638835,-150.27,0.0001699,2]
[322880258,1713468638844,-150.27,0.0001699,2]
[322880259,1713468638853,-150.27,0.0001699,2]
[322880260,1713468638862,-150.27,0.0001699,2]
[322880261,1713468638872,-150.27,0.0001699,2]
[322880262,1713468638882,-150.27,0.0001699,2]
[322880263,1713468638891,-2406.57911224,0.00017,2]
[322880264,1713468639021,-838.75528515,0.00017,2]
[322880265,1713468639033,-5500.59028206,0.00017,2]
[322880267,1713468640521,-96772.18347305,0.00017,2]
[322880268,1713468640532,-5061.64822947,0.00017,2]
[322880269,1713468640543,-960.0,0.00017,2]
[322880270,1713468640715,-562.41669742,0.00017,2]
[322880271,1713468640726,-1600.0,0.00017,2]
[322880272,1713468640737,-435.67082283,0.00017,2]
[322880273,1713468640760,-593.4867167,0.00017,2]
[322880277,1713468641187,-6108.96117319,0.00016999,2]
[322880278,1713468641200,-2307.74882681,0.00016999,2]
[322880279,1713468641209,-27955.39852109,0.00017,2]
[322880313,1713468643728,-866.67264469,0.00016999,2]
[322880317,1713468643857,-4349.01500908,0.00016999,2]
[322880319,1713468643870,-388.33599996,0.00016999,2]
[322880324,1713468643937,-1487.06429874,0.00016999,2]
[322880332,1713468647725,-1325.62204753,0.00016999,2]
[322880333,1713468647736,-1862.4004563,0.00016999,2]
[322880334,1713468647770,-607.97134023,0.00016999,2]
[322880335,1713468647807,-729.0,0.00016999,2]
[322880336,1713468647818,-2362.176004,0.00016999,2]
[322880337,1713468647830,-442.00189353,0.00016999,2]
[322880338,1713468647842,-2413.16030594,0.00016999,2]
[322880339,1713468647852,-2376.27986313,0.00016999,2]
[322880340,1713468647902,-6040.43013687,0.00016999,2]
[322880341,1713468647911,-6317.27533144,0.00016999,2]
[322880342,1713468647923,-1850.25890307,0.00016999,2]
[322880343,1713468647968,-249.17576549,0.00016999,2]
[322880344,1713468647978,-417.89063451,0.00016999,2]
[322880345,1713468647989,-762.58582215,0.00016999,2]
[322880346,1713468648009,-404.4192757,0.00016999,2]
[322880347,1713468648135,-3642.85020046,0.00016999,2]
[322880348,1713468648147,-2000.81106848,0.00016999,2]
[322880349,1713468649222,-1188.1529987,0.00016999,2]
[322880350,1713468649232,-1516.79820903,0.00016999,2]
[322880352,1713468779193,472.3,0.00014153,2]
[322880353,1713469059118,1747.00099632,0.00012747,2]
[322880354,1713469067473,202.20556811,0.00012746,2]
[322880355,1713469078822,1747.00099632,0.00012747,2]
[322880356,1713469100044,1747.00099632,0.00012747,2]
[322880357,1713469105886,325.49677635,0.00012746,2]
[322880358,1713469106853,363.01604032,0.00012746,2]
[322880359,1713469114616,1747.00099632,0.00012747,2]
[322880360,1713469134987,1266.87325901,0.00012747,2]
[322880361,1713469171932,1373.64319223,0.00012747,2]
[322880362,1713469213014,20160.54124009,0.00012747,2]
[322880363,1713469214944,27093.14518348,0.00015,2]
[322880364,1713469215970,1373.64319223,0.00012747,2]
[322880365,1713469216734,1470.85904345,0.00012747,2]
[322880366,1713469219678,1299.61302386,0.00012,2]
[322880367,1713469222884,1747.00099632,0.00012747,2]
[322880368,1713469228019,19665.31027831,0.00012747,2]
[322880369,1713469233076,4320.08840878,0.00012746,2]
[322880370,1713469233644,1373.64319223,0.00012747,2]
[322880371,1713469234844,1127.91805791,0.00012746,2]
[322880372,1713469234875,1469.04392903,0.00012747,2]
[322880373,1713469235665,11800.15850664,0.00012747,2]
[322880374,1713469241352,1035.83170704,0.00014,2]
[322880375,1713469241947,1747.00099632,0.00012747,2]
[322880376,1713469244717,19665.31027831,0.00012747,2]
[322880377,1713469244765,154.48,0.0001611,15]
[322880378,1713469256621,1747.00099632,0.00012747,2]
[322880379,1713469260372,1035.83170704,0.00014,2]
[322880380,1713469266826,15763.76891466,0.00012747,2]
[322880381,1713469267017,3505.0,0.00015501,2]
[322880382,1713469275192,441.23223615,0.00012747,2]
[322880383,1713469282062,1038.28767293,0.00014,2]
[322880384,1713469282208,502.62,0.00013598,2]
[322880385,1713469366528,1581.61199899,0.00015424,2]
[322880386,1713469368292,4713.55000001,0.00014,2]
[322880387,1713469388481,1878.19259,0.00015442,2]
[322880388,1713469423199,1390.21,0.00015444,2]
[322880389,1713469434787,250.0,0.00015467,2]
[322880390,1713469439480,1127.91805791,0.00015466,2]
[322880391,1713469465111,3152.34,0.00015441,2]
[322880392,1713469507103,3105.25,0.00015467,2]
[322880393,1713469535924,1993.60852359,0.00015503,2]
[322880394,1713469539921,2354.00026216,0.00015503,2]
[322880395,1713469544359,1293.26801217,0.00015503,2]
[322880396,1713469544424,1241.30093329,0.00015503,2]
[322880397,1713469548844,10560.43713535,0.00015502,2]
[322880398,1713469551288,4320.08840878,0.00015503,2]
[322880399,1713469551334,1388.38063006,0.00015503,2]
[322880400,1713469552864,1783.17554806,0.00015503,2]
[322880401,1713469560056,-2214.12688215,0.00015504,2]
[322880402,1713469560078,-709.5115768,0.00015505,2]
[322880403,1713469560100,-1243.72553608,0.00015505,2]
[322880404,1713469560121,-2178.32429396,0.00015506,2]
[322880405,1713469560142,-164.40528699,0.00015506,2]
[322880406,1713469560163,-4726.23363279,0.00015506,2]
[322880407,1713469560187,-193.21,0.00015536,2]
[322880408,1713469560208,-500.0,0.00015543,2]
[322880409,1713469560229,-1820.80388649,0.00015612,2]
[322880410,1713469560250,-499.99,0.00015725,2]
[322880411,1713469560271,-981.61,0.00015726,2]
[322880412,1713469560293,-502.62,0.00015862,2]
[322880413,1713469560580,-167.53,0.00015863,2]
[322880414,1713469560690,-163.28744,0.0001589,2]
[322880415,1713469560713,-151.49,0.00015892,2]
[322880416,1713469560737,-2090.34,0.0001591,2]
[322880417,1713469560759,-1127.91805791,0.00015998,2]
[322880418,1713469560784,-150.0,0.00015999,2]
[322880419,1713469560806,-999.99,0.00015999,2]
[322880420,1713469560828,-175.26,0.00016028,2]
[322880421,1713469560849,-6178.37560348,0.00016146,7]
[322880422,1713469560870,-3162.57273202,0.00016146,2]
[322880423,1713469560893,-169.74,0.00016197,2]
[322880424,1713469560914,-6620.20474409,0.00016349,2]
[322880425,1713469560936,-258.99001207,0.00016438,2]
[322880426,1713469560957,-1500.0,0.00016438,2]
[322880427,1713469560978,-302.05,0.00016478,2]
[322880428,1713469561000,-418.65,0.00016478,2]
[322880429,1713469561021,-521.47,0.00016478,2]
[322880430,1713469561043,-329.04,0.00016478,2]
[322880431,1713469561064,-795.81,0.00016478,2]
[322880432,1713469561085,-300.0,0.00016478,2]
[322880433,1713469561106,-375.138,0.0001659,2]
[322880434,1713469561128,-163.28744,0.00016712,2]
[322880435,1713469561150,-665.36,0.00016712,2]
[322880436,1713469561173,-151.49,0.0001672,2]
[322880437,1713469561194,-1000.0,0.00016798,2]
[322880438,1713469561215,-13320.7634,0.00016799,2]
[322880439,1713469561236,-1860.0529,0.00016799,2]
[322880440,1713469561257,-2352.13843842,0.000168,2]
[322880441,1713469561279,-678.36338,0.0001683,2]
[322880442,1713469561301,-1000.0,0.00016864,2]
[322880443,1713469561322,-11470.1855,0.00016896,2]
[322880444,1713469561344,-4868.1171,0.00016897,2]
[322880445,1713469561365,-4406.01803981,0.00016897,2]
[322880446,1713469561387,-270.32471608,0.00016898,2]
[322880447,1713469561410,-12567.0549,0.00016898,2]
[322880448,1713469561431,-335.7407,0.00016898,2]
[322880449,1713469561452,-5298.5833,0.00016898,2]
[322880450,1713469561474,-1057.6,0.00016898,2]
[322880451,1713469561495,-26248.8274,0.00016898,2]
[322880452,1713469561518,-180.02495681,0.00016899,2]
[322880453,1713469561541,-500.0,0.00016899,2]
[322880454,1713469561563,-27327.7691,0.000169,2]
[322880455,1713469561585,-4940.7397,0.000169,2]
[322880456,1713469561606,-2005.8237,0.000169,2]
[322880457,1713469561628,-21487.4249,0.000169,2]
[322880458,1713469561648,-718.82170118,0.000169,2]
[322880459,1713469561670,-244.19735881,0.000169,2]
[322880460,1713469561690,-175.73559832,0.000169,2]
[322880461,1713469561712,-3591.00480966,0.000169,2]
[322880462,1713469561736,-702.4317774,0.000169,2]
[322880463,1713469561756,-5163.0,0.00016986,2]
[322880464,1713469561808,-425.75453347,0.00016988,2]
[322880465,1713469561831,-150.27,0.00016988,2]
[322880466,1713469561853,-150.27,0.00016989,2]
[322880467,1713469561877,-150.27,0.00016989,2]
[322880468,1713469561901,-150.27,0.00016989,2]
[322880469,1713469561923,-2204.0,0.0001699,2]
[322880470,1713469561943,-150.27,0.0001699,2]
[322880471,1713469561966,-150.27,0.0001699,2]
[322880472,1713469561989,-150.27,0.0001699,2]
[322880473,1713469562011,-150.27,0.0001699,2]
[322880474,1713469562035,-150.27,0.0001699,2]
[322880475,1713469562058,-150.27,0.0001699,2]
[322880476,1713469562081,-150.27,0.0001699,2]
[322880477,1713469562104,-150.27,0.0001699,2]
[322880478,1713469562128,-200.0,0.00016994,2]
[322880479,1713469562151,-486.67993032,0.00016996,2]
[322880480,1713469562174,-1773.53667581,0.00016996,2]
[322880481,1713469562196,-303.00268691,0.00016996,2]
[322880482,1713469562219,-155.0,0.00016996,2]
[322880483,1713469562244,-165.96159661,0.00016996,2]
[322880484,1713469562266,-201.77104575,0.00016996,2]
[322880485,1713469562289,-298.48067727,0.00016996,2]
[322880486,1713469562312,-361.69441178,0.00016996,2]
[322880487,1713469562335,-3756.48115014,0.00016996,2]
[322880488,1713469562357,-1868.06030025,0.00016996,2]
[322880489,1713469562381,-1298.43503542,0.00016996,2]
[322880490,1713469562405,-5542.02176145,0.00016996,2]
[322880491,1713469562428,-449.556772,0.00016996,2]
[322880492,1713469562450,-6226.99873406,0.00016996,2]
[322880493,1713469562472,-791.48812257,0.00016996,2]
[322880494,1713469562495,-2354.00026216,0.00016996,2]
[322880495,1713469562517,-1968.8509703,0.00016996,2]
[322880496,1713469562540,-300.20034812,0.00016997,2]
[322880497,1713469562562,-16207.29197354,0.00016997,2]
[322880498,1713469562584,-500.0,0.00016997,2]
[322880499,1713469562607,-500.0,0.00016997,2]
[322880500,1713469562633,-473271.92802379,0.00016998,2]
[322880501,1713469562654,-500.0,0.00016998,2]
[322880502,1713469562676,-500.0,0.00016998,2]
[322880503,1713469562698,-500.0,0.00016998,2]
[322880504,1713469562720,-161.95614697,0.00016999,2]
[322880505,1713469562745,-301683.48644466,0.00016999,2]
[322880506,1713469564533,3774.27776718,0.00015503,2]
[322880508,1713469763926,16607.6172,0.00015492,2]
[322880509,1713469794189,452.35,0.00013708,2]
[322880543,1713469832128,-155.0,0.00015578,2]
[322880544,1713469832138,-1293.26801217,0.00015579,2]
[322880545,1713469832148,-2601.73198783,0.00015579,2]
[322880546,1713469832161,-380.54,0.00015579,2]
[322880547,1713469832173,-1688.08803601,0.00015579,2]
[322880548,1713469832219,-325.37654758,0.00015579,2]
[322880549,1713469832230,-5564.70056393,0.00015579,2]
[322880550,1713469832239,-1268.76382903,0.0001558,5]
[322880551,1713469832248,-4726.23363279,0.00015588,2]
[322880552,1713469832257,-490.81,0.00015593,2]
[322880553,1713469832266,-175.49,0.00015671,2]
[322880554,1713469832275,-984.09203001,0.00015761,2]
[322880555,1713469832286,-417.27522362,0.00015761,2]
[322880556,1713469832297,-257.50274637,0.00015761,2]
[322880557,1713469832306,-1097.07,0.00015884,2]